bitfinex-derivatives/quotes_BTCF0:USTF0_20250903
["timestamp","ask_amount","ask_price","bid_price","bid_amount"]
[1756867931275,0.0001,111490.0,111480.0,0.0896951]
[1756867931473,0.13573887,111510.0,111480.0,1.18640537]
[1756867931474,0.11049158,111510.0,111480.0,1.18640537]
[1756867931672,0.11049158,111510.0,111500.0,0.34805246]
[1756867931879,0.11049158,111510.0,111500.0,0.36860658]
[1756867932181,0.08736158,111510.0,111500.0,0.39860658]
[1756867932974,0.11049158,111510.0,111500.0,1.19924658]
[1756867933298,0.11049158,111510.0,111500.0,1.55924658]
[1756867933488,0.11149158,111510.0,111500.0,1.55924658]
[1756867933989,0.11049158,111510.0,111500.0,1.55924658]
[1756867934181,0.17100158,111510.0,111500.0,0.36860658]
[1756867934378,0.13649158,111510.0,111500.0,1.51920658]
[1756867934582,0.17100158,111510.0,111500.0,1.51920658]
[1756867934779,0.17400158,111510.0,111500.0,1.51920658]
[1756867935390,0.17100158,111510.0,111500.0,1.19916658]
[1756867935591,0.17200158,111510.0,111500.0,0.74860658]
[1756867935793,0.17200158,111510.0,111500.0,1.51916658]
[1756867935992,0.17200158,111510.0,111500.0,1.52364658]
[1756867936892,0.17200158,111510.0,111500.0,0.69308658]
[1756867937187,0.17200158,111510.0,111500.0,1.57364658]
[1756867941190,0.13749158,111510.0,111500.0,1.57364658]
[1756867941594,0.17200158,111510.0,111500.0,1.57364658]
[1756867942284,0.13749158,111510.0,111500.0,1.57364658]
[1756867942490,0.11349158,111510.0,111500.0,1.57364658]
[1756867943390,0.13590872,111510.0,111500.0,1.57364658]
[1756867944091,0.11277872,111510.0,111500.0,1.57364658]
[1756867944693,0.09036158,111510.0,111500.0,1.57364658]
[1756867946293,0.09036158,111510.0,111500.0,1.23364658]
[1756867947095,0.15990878,111510.0,111500.0,1.23340658]
[1756867947297,0.15990878,111510.0,111500.0,1.51340658]
[1756867947489,0.15990878,111510.0,111500.0,0.68308658]
[1756867947690,0.15990878,111510.0,111500.0,1.51336658]
[1756867948089,0.11277878,111510.0,111500.0,1.51336658]
[1756867948690,0.11277878,111510.0,111500.0,1.77716658]
[1756867952895,0.19441878,111510.0,111500.0,1.49712658]
[1756867953095,0.19441878,111510.0,111500.0,1.83712658]
[1756867954607,0.19441878,111510.0,111500.0,0.63688658]
[1756867954800,0.19441878,111510.0,111500.0,1.84708658]
[1756867955006,0.11277878,111510.0,111500.0,1.84708658]
[1756867956720,0.11277878,111510.0,111500.0,2.19513904]
[1756867957111,0.0001,111520.0,111500.0,2.27101844]
[1756867957312,0.0001,111520.0,111510.0,2.43310492]
[1756867957617,0.08288729,111530.0,111510.0,2.94816733]
[1756867957618,0.0001,111530.0,111510.0,2.94816733]
[1756867957812,0.0001,111530.0,111520.0,1.61165913]
[1756867958011,0.08298729,111540.0,111520.0,1.64165913]
[1756867958312,0.13011729,111540.0,111530.0,0.52099942]
[1756867958513,0.08164,111540.0,111530.0,0.52099942]
[1756867959619,0.08364,111540.0,111530.0,0.52099942]
[1756867960119,0.08464,111540.0,111530.0,0.52099942]
[1756867960818,0.08364,111540.0,111530.0,0.52099942]
[1756867961120,0.08564,111540.0,111530.0,1.35555942]
[1756867962221,0.08564,111540.0,111530.0,1.36454015]
[1756867965920,0.08564,111540.0,111530.0,1.36446015]
[1756867967421,0.08564,111540.0,111530.0,1.36442015]
[1756867969126,0.10794036,111540.0,111530.0,1.69442015]
[1756867971030,0.07343036,111540.0,111530.0,1.69442015]
[1756867971222,0.04943036,111540.0,111530.0,1.69442015]
[1756867972523,0.02630036,111540.0,111530.0,1.69442015]
[1756867973029,0.02630036,111540.0,111530.0,1.97604913]
[1756867974624,0.02630036,111540.0,111530.0,1.71554942]
[1756867974819,0.07301036,111540.0,111530.0,1.41542942]
[1756867975021,0.07301036,111540.0,111530.0,1.73542942]
[1756867976230,0.07301036,111540.0,111530.0,1.73538942]
[1756867976831,0.07301036,111540.0,111530.0,0.90558942]
[1756867977032,0.07301036,111540.0,111530.0,1.41538942]
[1756867977528,0.05071,111540.0,111530.0,1.41538942]
[1756867977732,0.05071,111540.0,111530.0,0.58558942]
[1756867977933,0.05071,111540.0,111530.0,1.41538942]
[1756867978130,0.0729735,111540.0,111530.0,1.41538942]
[1756867978331,0.05071,111540.0,111530.0,1.41538942]
[1756867978531,0.0729735,111540.0,111530.0,1.41538942]
[1756867978738,0.0729735,111540.0,111530.0,0.58558942]
[1756867979034,0.1085035,111540.0,111530.0,1.69534942]
[1756867980625,0.3585035,111540.0,111530.0,0.28610898]
[1756867980830,0.3585035,111540.0,111530.0,1.11586898]
[1756867981234,0.3585035,111540.0,111530.0,1.37636869]
[1756867982339,0.3585035,111540.0,111530.0,1.11586898]
[1756867982532,0.3585035,111540.0,111530.0,1.37636869]
[1756867983037,0.3585035,111540.0,111530.0,1.11586898]
[1756867983238,0.3585035,111540.0,111530.0,0.28610898]
[1756867983437,0.3585035,111540.0,111530.0,1.11578898]
[1756867991045,0.3565035,111540.0,111530.0,1.11578898]
[1756867991245,0.3575035,111540.0,111530.0,1.11578898]
[1756867991844,0.3555035,111540.0,111530.0,1.11578898]
[1756867992642,0.3555035,111540.0,111530.0,1.37628869]
[1756867995143,0.3555035,111540.0,111530.0,1.11578898]
[1756867995538,0.3555035,111540.0,111530.0,0.85528927]
[1756867995742,0.3555035,111540.0,111530.0,1.11578898]
[1756867996543,0.3567635,111540.0,111530.0,1.37628869]
[1756868004648,0.3567635,111540.0,111530.0,0.54660869]
[1756868004845,0.61726321,111540.0,111530.0,1.49538898]
[1756868006554,0.61726321,111540.0,111530.0,1.23488927]
[1756868006851,0.61726321,111540.0,111530.0,1.49538898]
[1756868009850,0.62615522,111540.0,111530.0,1.49538898]
[1756868010358,0.61726321,111540.0,111530.0,1.49538898]
[1756868011060,0.3567635,111540.0,111530.0,1.49538898]
[1756868019463,0.3567635,111540.0,111530.0,1.58235561]
[1756868019871,0.0232635,111540.0,111530.0,1.83235561]
[1756868020482,0.0232635,111540.0,111530.0,1.83224561]
[1756868020670,0.0232635,111540.0,111530.0,1.82787561]
[1756868021067,0.0222635,111540.0,111530.0,1.82787561]
[1756868021569,0.0222635,111540.0,111530.0,1.82987561]
[1756868022074,0.0222635,111540.0,111530.0,1.48240927]
[1756868022273,0.0222635,111540.0,111530.0,1.82880561]
[1756868022474,0.0222635,111540.0,111530.0,1.80880561]
[1756868023374,0.0222635,111540.0,111530.0,1.80840561]
[1756868025875,0.0222635,111540.0,111530.0,1.74261561]
[1756868026277,0.0222635,111540.0,111530.0,1.71567561]
[1756868026974,0.0222635,111540.0,111530.0,1.71369561]
[1756868027477,0.0222635,111540.0,111530.0,1.71091561]
[1756868028578,0.0222635,111540.0,111530.0,1.70971561]
[1756868029480,0.0222635,111540.0,111530.0,1.65882561]
[1756868032475,0.0222635,111540.0,111530.0,0.23251927]
[1756868032476,0.3531935,111540.0,111530.0,0.23251927]
[1756868032679,1.04550984,111540.0,111500.0,0.24424]
[1756868032981,0.42839634,111510.0,111500.0,0.23204]
[1756868033174,0.1031935,111510.0,111490.0,0.34746634]
[1756868033370,0.09453,111500.0,111490.0,0.96910634]
[1756868033575,0.0358635,111500.0,111490.0,0.96910634]
[1756868034282,0.0816435,111500.0,111490.0,0.96910634]
[1756868035182,0.0584335,111500.0,111490.0,0.96910634]
[1756868035984,0.0584335,111500.0,111490.0,0.97010634]
[1756868036583,0.0816435,111500.0,111490.0,0.96910634]
[1756868037384,0.05938,111500.0,111490.0,0.96910634]
[1756868038083,0.08311121,111500.0,111490.0,0.96910634]
[1756868038286,0.05938,111500.0,111490.0,0.96910634]
[1756868038584,0.08310446,111500.0,111490.0,0.96910634]
[1756868039592,0.03732446,111500.0,111490.0,0.96910634]
[1756868040481,0.02372446,111500.0,111490.0,1.21910634]
[1756868040782,0.0001,111510.0,111490.0,1.21910634]
[1756868040982,0.0001,111510.0,111500.0,0.34746634]
[1756868041284,0.02358504,111510.0,111500.0,0.34746634]
[1756868041478,0.04615504,111510.0,111500.0,0.34746634]
[1756868041980,0.02358504,111510.0,111500.0,0.34746634]
[1756868042282,0.06936504,111510.0,111500.0,0.34746634]
[1756868042483,0.02358504,111510.0,111500.0,0.34846634]
[1756868042680,0.0001,111520.0,111500.0,2.33554634]
[1756868042875,0.0001,111520.0,111510.0,1.17622634]
[1756868043080,0.0001,111530.0,111510.0,1.17622634]
[1756868043276,0.0001,111530.0,111520.0,0.34746634]
[1756868043580,0.02357729,111540.0,111520.0,0.34746634]
[1756868043581,0.0001,111540.0,111520.0,0.34746634]
[1756868043889,0.0001,111540.0,111530.0,1.17618634]
[1756868044184,0.10450645,111540.0,111530.0,1.17618634]
[1756868046082,0.10550645,111540.0,111530.0,1.17618634]
[1756868046489,0.10650645,111540.0,111530.0,1.17618634]
[1756868047685,0.07135645,111540.0,111530.0,1.18528843]
[1756868047890,0.02557645,111540.0,111530.0,1.18528843]
[1756868048585,0.002,111540.0,111530.0,1.18528843]
[1756868049088,0.01388,111550.0,111530.0,1.18628843]
[1756868049289,0.09537,111550.0,111540.0,0.34746634]
[1756868049485,0.1188405,111550.0,111540.0,0.34746634]
[1756868051294,0.1188405,111550.0,111530.0,1.18628843]
[1756868051592,0.1199405,111550.0,111540.0,0.82848]
[1756868051789,0.1198405,111550.0,111540.0,0.82848]
[1756868051988,0.1208405,111550.0,111540.0,0.82848]
[1756868052585,0.1198405,111550.0,111540.0,0.82848]
[1756868052797,0.1188405,111550.0,111540.0,0.82848]
[1756868053097,0.1188405,111550.0,111540.0,1.17594634]
[1756868053592,0.3688405,111550.0,111530.0,0.34846634]
[1756868053795,0.46640684,111550.0,111540.0,0.82844]
[1756868053995,0.08221,111540.0,111530.0,0.001]
[1756868054194,0.08221,111540.0,111530.0,0.8284]
[1756868055095,0.08221,111540.0,111530.0,0.51654]
[1756868055294,0.08221,111540.0,111530.0,0.01308]
[1756868055487,0.08221,111540.0,111530.0,0.01208]
[1756868055683,0.08221,111540.0,111530.0,0.01308]
[1756868056597,0.08221,111540.0,111530.0,0.001]
[1756868056790,0.08221,111540.0,111530.0,0.82936]
[1756868061005,0.08221,111540.0,111530.0,0.001]
[1756868061203,0.67967634,111540.0,111530.0,0.82924]
[1756868061392,0.67967634,111540.0,111530.0,0.82255]
[1756868061892,0.08221,111520.0,111510.0,0.62904027]
[1756868062092,0.08221,111520.0,111510.0,1.20348027]
[1756868062301,0.08221,111520.0,111510.0,0.58148548]
[1756868063311,0.08221,111520.0,111510.0,0.5904282]
[1756868064002,0.08221,111520.0,111510.0,0.5914282]
[1756868064507,0.08221,111520.0,111510.0,0.5924282]
[1756868066703,0.08221,111520.0,111510.0,0.03284887]
[1756868067002,0.08221,111520.0,111510.0,1.20847521]
[1756868067394,0.08221,111520.0,111510.0,0.86100887]
[1756868067795,0.08221,111520.0,111510.0,0.86000887]
[1756868068197,0.67967634,111520.0,111510.0,0.02084887]
[1756868068503,0.7033834,111520.0,111510.0,0.02084887]
[1756868070202,0.01498,111500.0,111490.0,0.02070104]
[1756868070397,0.06238,111500.0,111490.0,0.7474]
[1756868070600,0.40984634,111500.0,111470.0,0.34746634]
[1756868070804,0.0474,111490.0,111480.0,1.17558634]
[1756868071004,0.08221,111490.0,111480.0,1.50351634]
[1756868071601,0.08221,111490.0,111480.0,0.74300634]
[1756868071997,0.08221,111490.0,111480.0,0.39554]
[1756868072707,0.08221,111490.0,111480.0,0.39654]
[1756868073605,0.08221,111490.0,111480.0,0.39754]
[1756868074899,0.42967634,111490.0,111480.0,0.39754]
[1756868075300,0.42967634,111490.0,111480.0,0.22754]
[1756868076006,0.08221,111490.0,111480.0,0.22754]
[1756868081510,0.34304827,111490.0,111480.0,0.48837827]
[1756868082611,0.34304827,111490.0,111480.0,0.22754]
[1756868082913,0.34304827,111490.0,111480.0,0.48837827]
[1756868083614,0.08221,111490.0,111480.0,0.48837827]
[1756868083912,0.34304827,111490.0,111480.0,0.48837827]
[1756868084311,0.0474,111490.0,111480.0,0.48837827]
[1756868084612,0.39412969,111500.0,111480.0,0.74921654]
[1756868084812,0.41778624,111500.0,111490.0,0.26083827]
[1756868085012,0.45382624,111500.0,111490.0,0.26083827]
[1756868095117,0.45382624,111500.0,111480.0,0.04554]
[1756868095318,0.45392624,111500.0,111490.0,0.26083827]
[1756868095521,0.08431,111490.0,111480.0,0.30637827]
[1756868095820,0.10796655,111490.0,111480.0,0.56721654]
[1756868096820,0.10796655,111490.0,111480.0,0.56921654]
[1756868099616,0.07182655,111490.0,111480.0,0.56921654]
[1756868100721,0.10796655,111490.0,111480.0,0.56921654]
[1756868101120,0.10796655,111490.0,111480.0,0.04754]
[1756868101325,0.10796655,111490.0,111480.0,0.56921654]
[1756868101520,0.36880482,111490.0,111480.0,1.09059827]
[1756868101721,0.36880482,111490.0,111480.0,0.26283827]
[1756868101920,0.36880482,111490.0,111480.0,0.002]
[1756868102427,0.36880482,111490.0,111480.0,0.26283827]
[1756868104436,0.36880482,111490.0,111480.0,0.002]
[1756868104623,0.87964309,111490.0,111480.0,0.002]
[1756868104831,1.23802038,111490.0,111480.0,0.002]
[1756868105218,0.66718211,111490.0,111480.0,0.002]
[1756868106029,0.40634384,111490.0,111480.0,0.002]
[1756868106537,0.61880482,111490.0,111480.0,0.002]
[1756868109140,0.62880482,111490.0,111480.0,0.002]
[1756868117240,0.62964309,111490.0,111480.0,0.002]
[1756868117540,0.08469,111470.0,111460.0,0.28206104]
[1756868117746,0.36918482,111470.0,111460.0,1.00534104]
[1756868118945,0.36918482,111470.0,111460.0,1.00834104]
[1756868120148,0.36918482,111470.0,111460.0,1.01234104]
[1756868120446,0.36918482,111470.0,111460.0,0.75150277]
[1756868120647,0.36918482,111470.0,111460.0,1.01234104]
[1756868121147,0.34552827,111470.0,111460.0,1.01234104]
[1756868122448,0.34552827,111470.0,111460.0,0.34822277]
[1756868122651,0.08469,111470.0,111460.0,1.43654104]
[1756868122841,0.34552827,111470.0,111460.0,1.43654104]
[1756868124050,0.34552827,111470.0,111460.0,0.60906104]
[1756868124251,0.34552827,111470.0,111460.0,1.43650104]
[1756868125148,0.34552827,111470.0,111460.0,1.17566277]
[1756868125344,0.34552827,111470.0,111460.0,1.43650104]
[1756868126151,0.34552827,111470.0,111460.0,1.17566277]
[1756868126354,0.34552827,111470.0,111460.0,1.43650104]
[1756868127553,0.34552827,111470.0,111460.0,1.17566277]
[1756868127754,0.34552827,111470.0,111460.0,1.43650104]
[1756868127945,0.36192898,111470.0,111460.0,1.43650104]
[1756868128343,0.36192898,111470.0,111460.0,1.17566277]
[1756868128554,0.3856794,111470.0,111460.0,1.17558277]
[1756868128950,0.36927869,111470.0,111460.0,1.17558277]
[1756868130459,0.63011696,111470.0,111460.0,0.327]
[1756868130950,0.64011696,111470.0,111460.0,0.007]
[1756868132959,0.65627963,111470.0,111460.0,0.007]
[1756868134352,0.39544136,111470.0,111460.0,0.007]
[1756868135755,0.37927869,111470.0,111460.0,0.007]
[1756868137253,0.11844042,111470.0,111460.0,0.79946613]
[1756868137567,0.03432,111470.0,111460.0,1.06946613]
[1756868140071,0.03755,111480.0,111460.0,1.06946613]
[1756868140072,0.0001,111480.0,111460.0,1.06946613]
[1756868140365,0.02298,111480.0,111470.0,1.08795827]
[1756868140565,0.05996,111480.0,111470.0,1.08795827]
[1756868141061,0.05996,111480.0,111470.0,1.11709131]
[1756868141555,0.08370803,111480.0,111470.0,1.08995827]
[1756868141955,0.3445463,111480.0,111470.0,1.08995827]
[1756868142356,0.3445463,111480.0,111470.0,1.09195827]
[1756868142552,0.3445463,111480.0,111470.0,1.12151104]
[1756868143558,0.08370803,111480.0,111470.0,1.20846775]
[1756868145265,0.08370803,111480.0,111470.0,1.17891498]
[1756868147359,0.08370803,111480.0,111470.0,1.20840442]
[1756868148169,0.05996,111480.0,111470.0,1.20840442]
[1756868150964,0.03718,111490.0,111470.0,1.20840442]
[1756868151173,0.32876153,111490.0,111470.0,0.86060944]
[1756868151368,0.32876153,111490.0,111470.0,1.20840442]
[1756868151873,0.32876153,111490.0,111470.0,0.03348944]
[1756868152071,0.03708,111480.0,111470.0,0.35179498]
[1756868152262,0.43271498,111480.0,111470.0,0.004]
[1756868152767,0.43271498,111480.0,111470.0,0.83076]
[1756868152959,0.43271498,111480.0,111470.0,0.004]
[1756868153161,0.43271498,111480.0,111470.0,0.83076]
[1756868153472,0.08492,111480.0,111470.0,0.83072]
[1756868153670,0.43271498,111480.0,111470.0,0.83072]
[1756868156070,0.44271498,111480.0,111470.0,0.83072]
[1756868156872,0.09492,111480.0,111470.0,0.83072]
[1756868157266,0.11865795,111480.0,111470.0,0.83072]
[1756868157566,0.09492,111480.0,111470.0,0.83072]
[1756868158371,0.11866122,111480.0,111470.0,0.83072]
[1756868158563,0.09492,111480.0,111470.0,0.83072]
[1756868163073,0.44271498,111480.0,111470.0,0.83072]
[1756868163661,0.71646806,111480.0,111470.0,0.004]
[1756868163866,1.02646806,111480.0,111470.0,0.004]
[1756868165374,1.37426304,111480.0,111470.0,0.004]
[1756868165775,1.37426304,111480.0,111460.0,0.02078959]
[1756868165983,0.08492,111470.0,111460.0,0.02078959]
[1756868166175,0.45646806,111470.0,111460.0,0.02078959]
[1756868166978,0.45646806,111470.0,111460.0,0.02378959]
[1756868167566,0.45646806,111470.0,111460.0,0.02778959]
[1756868171986,0.46646806,111470.0,111460.0,0.02778959]
[1756868174173,0.11867308,111470.0,111460.0,0.02778959]
[1756868174382,0.46646806,111470.0,111460.0,0.02778959]
[1756868174880,0.45646806,111470.0,111460.0,0.02778959]
[1756868175182,0.46646806,111470.0,111460.0,0.02778959]
[1756868175683,1.03646806,111470.0,111460.0,0.02778959]
[1756868175882,1.03646806,111470.0,111460.0,0.003]
[1756868176079,0.09915,111450.0,111440.0,0.09568693]
[1756868176282,0.44694498,111450.0,111440.0,0.44060693]
[1756868176579,0.44694498,111450.0,111440.0,0.46568693]
[1756868177187,0.09915,111450.0,111440.0,0.47068693]
[1756868177386,0.44694498,111450.0,111440.0,0.47068693]
[1756868177587,0.44694498,111450.0,111440.0,0.47468693]
[1756868182096,0.09915,111450.0,111440.0,0.82248191]
[1756868182386,0.0844,111460.0,111450.0,0.07459]
[1756868182590,0.0943,111460.0,111450.0,0.42238498]
[1756868182792,0.0943,111460.0,111450.0,1.49870498]
[1756868182991,0.05859,111460.0,111450.0,1.50256498]
[1756868183689,0.05859,111460.0,111450.0,1.50456498]
[1756868183890,0.05859,111460.0,111450.0,1.50656498]
[1756868184396,0.37859,111460.0,111450.0,1.50656498]
[1756868188896,0.08859,111460.0,111450.0,1.50656498]
[1756868189896,0.08859,111460.0,111450.0,1.59656498]
[1756868191494,0.1243,111460.0,111450.0,1.59270498]
[1756868191699,0.08859,111460.0,111450.0,1.24491]
[1756868191899,0.08859,111460.0,111450.0,1.59270498]
[1756868192898,0.1243,111460.0,111450.0,1.59270498]
[1756868194805,0.08859,111460.0,111450.0,1.59270498]
[1756868195606,0.1243,111460.0,111450.0,1.59258498]
[1756868195906,0.08859,111460.0,111450.0,1.59258498]
[1756868196206,0.1243,111460.0,111450.0,0.76638498]
[1756868196406,0.1243,111460.0,111450.0,1.59254498]
[1756868199220,0.14808938,111460.0,111450.0,1.59254498]
[1756868199408,0.1243,111460.0,111450.0,1.59254498]
[1756868200914,0.3143,111460.0,111450.0,1.59254498]
[1756868203111,0.33808887,111460.0,111450.0,1.59254498]
[1756868204615,0.33808887,111460.0,111450.0,1.24475]
[1756868204818,0.33808887,111460.0,111450.0,1.59254498]
[1756868205116,0.33808887,111460.0,111450.0,1.24475]
[1756868205413,0.5990316,111460.0,111450.0,1.50569273]
[1756868205717,0.30237887,111460.0,111450.0,1.50569273]
[1756868205918,0.5633216,111460.0,111450.0,1.50569273]
[1756868207325,0.5987116,111460.0,111450.0,1.50569273]
[1756868212128,0.33776887,111460.0,111450.0,1.50569273]
[1756868212427,0.5987116,111460.0,111450.0,1.50569273]
[1756868212631,0.5987116,111460.0,111450.0,0.42953273]
[1756868212927,1.10965433,111460.0,111450.0,0.99447]
[1756868214531,0.8487116,111460.0,111450.0,0.99447]
[1756868215622,1.10965433,111460.0,111450.0,0.99447]
[1756868216428,1.10965433,111460.0,111450.0,0.16859]
[1756868216730,1.10965433,111460.0,111450.0,0.8298]
[1756868217031,1.10965433,111460.0,111450.0,0.85343]
[1756868217333,1.10965433,111460.0,111450.0,0.87768]
[1756868218126,1.10965433,111460.0,111450.0,0.90276]
[1756868219232,0.85965433,111460.0,111450.0,0.90276]
[1756868222635,0.33776887,111460.0,111450.0,0.90276]
[1756868222934,0.85965433,111460.0,111450.0,0.90276]
[1756868224034,0.5987116,111460.0,111450.0,1.16370273]
[1756868224834,0.5987116,111460.0,111450.0,0.90276]
[1756868225131,0.5987116,111460.0,111450.0,1.16370273]
[1756868225320,0.85965433,111460.0,111450.0,0.90276]
[1756868226031,0.33776887,111460.0,111450.0,0.90276]
[1756868226337,0.5987116,111460.0,111450.0,1.16370273]
[1756868226537,0.33776887,111460.0,111450.0,1.16370273]
[1756868226729,0.30237887,111460.0,111450.0,1.16370273]
[1756868227636,0.33776887,111460.0,111450.0,1.16370273]
[1756868227836,0.5987116,111460.0,111450.0,1.16370273]
[1756868228731,0.5987116,111460.0,111450.0,0.90276]
[1756868228926,0.33776887,111460.0,111450.0,0.90276]
[1756868229137,0.5987116,111460.0,111450.0,1.09136]
[1756868229336,0.5987116,111460.0,111450.0,1.35230273]
[1756868230135,0.33776887,111460.0,111450.0,1.35230273]
[1756868230439,0.5987116,111460.0,111450.0,1.09136]
[1756868230639,0.5987116,111460.0,111450.0,1.35230273]
[1756868230840,0.5633216,111460.0,111450.0,1.35616273]
[1756868231036,0.30237887,111460.0,111450.0,1.35616273]
[1756868231441,0.5633216,111460.0,111450.0,1.35230273]
[1756868231738,0.27830887,111460.0,111450.0,1.35616273]
[1756868233640,0.31346887,111460.0,111450.0,1.09136]
[1756868233840,0.31346887,111460.0,111450.0,1.35230273]
[1756868234939,0.33752887,111460.0,111450.0,0.52650273]
[1756868235140,0.5984716,111460.0,111450.0,1.35198273]
[1756868237043,0.5984716,111460.0,111450.0,0.26556]
[1756868237245,0.85941433,111460.0,111450.0,1.04256]
[1756868237542,0.85941433,111460.0,111450.0,1.35194273]
[1756868237942,0.85941433,111460.0,111450.0,0.26556]
[1756868238243,0.85941433,111460.0,111450.0,0.26542]
[1756868240947,0.5984716,111460.0,111450.0,0.26542]
[1756868241145,0.5984716,111460.0,111450.0,0.52636273]
[1756868242645,0.30236887,111460.0,111450.0,0.52636273]
[1756868242840,0.5633116,111460.0,111450.0,0.52636273]
[1756868243042,0.5984716,111460.0,111450.0,0.52636273]
[1756868249356,0.33752887,111460.0,111450.0,0.52636273]
[1756868249543,0.30236887,111460.0,111450.0,0.52636273]
[1756868250047,0.33752887,111460.0,111450.0,0.52636273]
[1756868250248,0.5984716,111460.0,111450.0,0.52636273]
[1756868251556,0.5984716,111460.0,111450.0,0.26542]
[1756868251752,0.5984716,111460.0,111450.0,0.52636273]
[1756868252752,0.25378887,111460.0,111450.0,1.04116546]
[1756868253356,0.25378887,111460.0,111450.0,0.78022273]
[1756868253552,0.25378887,111460.0,111450.0,1.04116546]
[1756868253945,0.23,111460.0,111450.0,1.04116546]
[1756868254145,0.23,111460.0,111450.0,1.41116546]
[1756868255156,0.23,111460.0,111450.0,1.43245899]
[1756868256249,0.23,111460.0,111450.0,0.91057353]
[1756868256449,0.31261,111460.0,111450.0,0.42671353]
[1756868256649,0.31261,111460.0,111450.0,1.51277626]
[1756868258454,0.31261,111460.0,111450.0,0.68765626]
[1756868258646,0.31261,111460.0,111450.0,1.51273626]
[1756868261257,0.31261,111460.0,111450.0,1.74273626]
[1756868263258,0.57355273,111460.0,111450.0,0.91765626]
[1756868263452,1.08449546,111460.0,111450.0,1.45655353]
[1756868263752,1.08449546,111460.0,111450.0,1.40881353]
[1756868263961,1.08449546,111460.0,111450.0,1.43389353]
[1756868264162,0.82355273,111460.0,111450.0,1.43389353]
[1756868264460,0.82355273,111460.0,111450.0,1.23389353]
[1756868265462,0.91060082,111460.0,111450.0,1.23389353]
[1756868268859,0.93434811,111460.0,111450.0,1.23389353]
[1756868278060,0.68434811,111460.0,111450.0,1.25537353]
[1756868278263,0.93434811,111460.0,111450.0,1.03991]
[1756868278458,1.75902811,111460.0,111450.0,0.1926]
[1756868279260,1.50902811,111460.0,111450.0,0.1926]
[1756868280167,0.68434811,111460.0,111450.0,0.21523]
[1756868280367,0.68434811,111460.0,111450.0,0.26448]
[1756868281666,0.33635729,111460.0,111450.0,0.26448]
[1756868281867,0.68434811,111460.0,111450.0,0.2394]
[1756868284069,0.33635729,111460.0,111450.0,0.26448]
[1756868284263,0.68434811,111460.0,111450.0,0.26448]
[1756868289470,0.33635729,111460.0,111450.0,0.26448]
[1756868289770,0.33635729,111460.0,111450.0,0.61247082]
[1756868290361,0.30119729,111460.0,111450.0,0.61247082]
[1756868290564,0.30119729,111460.0,111450.0,0.86247082]
[1756868292374,0.33782729,111460.0,111450.0,0.86247082]
[1756868292565,0.33782729,111460.0,111450.0,0.51448]
[1756868292864,0.33782729,111460.0,111450.0,0.86247082]
[1756868295173,0.33782729,111460.0,111450.0,0.51448]
[1756868295368,0.33782729,111460.0,111450.0,0.86247082]
[1756868295572,0.33782729,111460.0,111450.0,0.51448]
[1756868298172,0.33782729,111460.0,111450.0,0.86247082]
[1756868299272,0.33782729,111460.0,111450.0,0.51448]
[1756868299476,0.33782729,111460.0,111450.0,0.86247082]
[1756868318806,0.33782729,111460.0,111450.0,0.51448]
[1756868319103,0.33782729,111460.0,111450.0,1.68631082]
[1756868319897,0.33782729,111460.0,111450.0,1.33832]
[1756868320104,0.33982729,111460.0,111450.0,1.33632]
[1756868320700,0.31608,111460.0,111450.0,1.33632]
[1756868320900,0.34083623,111460.0,111450.0,1.33432]
[1756868323108,0.34083623,111460.0,111450.0,1.68231082]
[1756868326710,0.34083623,111460.0,111450.0,1.33432]
[1756868327511,0.60179693,111460.0,111450.0,1.5952807]
[1756868327904,0.60179693,111460.0,111450.0,0.7714407]
[1756868328204,0.60179693,111460.0,111450.0,1.5950807]
[1756868328514,0.86275763,111460.0,111450.0,0.26048]
[1756868328904,0.86275763,111460.0,111450.0,1.059]
[1756868329102,0.86275763,111460.0,111450.0,1.08408]
[1756868330611,0.60179693,111460.0,111450.0,1.3450407]
[1756868331015,0.56516693,111460.0,111450.0,1.3450407]
[1756868331208,0.60016693,111460.0,111450.0,1.3450407]
[1756868339917,0.60016693,111460.0,111450.0,0.5214407]
[1756868340126,0.86112763,111460.0,111450.0,1.08384]
[1756868340415,0.60016693,111460.0,111450.0,1.08384]
[1756868340620,0.86112763,111460.0,111450.0,1.08384]
[1756868341722,0.60016693,111460.0,111450.0,1.08384]
[1756868343121,0.86112763,111460.0,111450.0,1.08384]
[1756868344421,0.86112763,111460.0,111450.0,0.26048]
[1756868344622,0.86112763,111460.0,111450.0,1.08376]
[1756868345218,1.11112763,111460.0,111450.0,0.26048]
[1756868345425,1.11112763,111460.0,111450.0,0.1886]
[1756868346724,1.37208833,111460.0,111450.0,0.1511]
[1756868347718,1.11112763,111460.0,111450.0,0.1511]
[1756868348926,1.11111359,111460.0,111450.0,0.1511]
[1756868351930,0.58919219,111460.0,111450.0,0.1511]
[1756868352129,1.11111359,111460.0,111450.0,0.1511]
[1756868352426,1.93431359,111460.0,111450.0,0.1511]
[1756868353225,1.95894869,111460.0,111450.0,0.1511]
[1756868353428,1.9105714,111460.0,111450.0,0.1511]
[1756868354122,1.98270349,111460.0,111450.0,0.1511]
[1756868354528,1.93429794,111460.0,111450.0,0.1511]
[1756868358937,1.11109794,111460.0,111450.0,0.1511]
[1756868359138,1.11109794,111460.0,111450.0,0.23534]
[1756868359139,1.68413794,111460.0,111450.0,0.23534]
[1756868359330,1.42317724,111460.0,111450.0,0.5105707]
[1756868359637,1.68413794,111460.0,111450.0,0.24961]
[1756868360438,0.90950349,111460.0,111450.0,0.24961]
[1756868360636,1.68413794,111460.0,111450.0,0.24961]
[1756868361034,1.68413794,111460.0,111450.0,0.23534]
[1756868364841,1.16221654,111460.0,111450.0,0.23534]
[1756868365042,1.68413794,111460.0,111450.0,0.23534]
[1756868365442,1.68413794,111460.0,111450.0,0.19875]
[1756868367545,1.68413794,111460.0,111450.0,0.1511]
[1756868367842,1.68413794,111460.0,111450.0,0.19875]
[1756868369042,1.73254349,111460.0,111450.0,0.19875]
[1756868373845,1.73254349,111460.0,111450.0,0.23534]
[1756868374543,1.68413794,111460.0,111450.0,0.23534]
[1756868374742,1.68413794,111460.0,111450.0,0.19875]
[1756868375444,1.74867868,111460.0,111450.0,0.19875]
[1756868376748,1.74867868,111460.0,111450.0,0.1511]
[1756868377148,1.74867868,111460.0,111450.0,0.1757]
[1756868377340,1.74867868,111460.0,111450.0,0.1511]
[1756868377542,0.92563868,111460.0,111450.0,0.1511]
[1756868377847,1.74827868,111460.0,111450.0,0.1511]
[1756868378949,1.7321724,111460.0,111450.0,0.1511]
[1756868380849,1.210251,111460.0,111450.0,0.1511]
[1756868381046,1.7321724,111460.0,111450.0,0.1511]
[1756868382751,0.9095324,111460.0,111450.0,0.1511]